Cogmind - Beta 13 @@@ ROGUE MODE // 2024.07.04 @ 10:38:42 Player: H0-R5E Result: Destroyed by I3-CGO(R) with Subdweller Machine Gun Performance ------------- Evolutions (0) 0 Regions Visited (3) 600 Robots Destroyed (26) 130 Value Destroyed (563) 563 Prototype IDs (0) 0 Alien Tech Used (0) 0 Bonus (0) 0 TOTAL SCORE: 1293 Bonus ------- None Cogmind --------- Core Integrity 0/250 Matter 244/300 Energy 250/250 System Corruption 0% Temperature Cool (0) Movement Walking (130) Location -10/Subcaves Parts ------- > --- POWER (1) -------- Ion Engine > --- PROPULSION (2) --- Aluminum Leg Makeshift Leg > --- UTILITY (2) ------ Small Storage Unit Structural Scanner > --- WEAPON (2) ------- Light Assault Rifle Slug Cannon > --- INVENTORY (8) ---- Disposable Heat Sink Improved Terrain Scanner Tractor Beam Mining Laser Scrap Shield Fragment (45) Peak State ------------ > --- POWER ------------ Ion Engine > --- PROPULSION ------- Aluminum Leg Makeshift Leg > --- UTILITY ---------- Small Storage Unit Structural Scanner > --- WEAPON ----------- Particle Gun Slug Cannon > --- INVENTORY -------- Disposable Heat Sink Improved Terrain Scanner Tractor Beam Light Assault Rifle Mining Laser Piercing Trap Scrap Shield Fragment [Rating: 15] Favorites ----------- Power Light Ion Engine Engine Light Ion Engine Propulsion Aluminum Leg Leg Aluminum Leg Utility Small Storage Unit Device Structural Scanner Storage Small Storage Unit Weapon Particle Gun Energy Gun Particle Gun Ballistic Gun Light Assault Rifle Ballistic Cannon Slug Cannon Special Weapon Mining Laser Build | -11 -10 -10 -10 ------- Run | Yrd Mat Min Sub Slots Evolved . | . . . . Power . | . . . . Propulsion . | . . . . Utility . | . . . . Weapon . | . . . . Parts Attached 27 | 6 8 4 9 Power 4 | 1 1 1 1 Engine 4 | 1 1 1 1 Core . | . . . . Reactor . | . . . . Propulsion 9 | 2 5 1 1 Treads . | . . . . Leg 9 | 2 5 1 1 Wheel . | . . . . Hover . | . . . . Flight . | . . . . Utility 5 | 1 1 . 3 Device 4 | . 1 . 3 Storage 1 | 1 . . . Processor . | . . . . Hackware . | . . . . Protection . | . . . . Artifact . | . . . . Weapon 9 | 2 1 2 4 Energy Gun 1 | . 1 . . Energy Cannon . | . . . . Ballistic Gun 5 | 2 . 1 2 Ballistic Cannon 1 | . . . 1 Launcher . | . . . . Special Weapon 2 | . . 1 1 Impact Weapon . | . . . . Slashing Weapon . | . . . . Piercing Weapon . | . . . . Special Melee Weapon . | . . . . Unidentified Prototypes . | . . . . Parts Lost 6 | . 1 2 3 Power 3 | . 1 1 1 Propulsion 1 | . . . 1 Utility . | . . . . Weapon 2 | . . 1 1 Highest Loss Streak 2 | . 1 2 2 To Critical Strikes . | . . . . Average Slot Usage (%) 97 | . 93 98 99 Engine 13 | . 14 13 13 Leg 27 | . 28 28 27 Device 12 | . 8 14 14 Storage 14 | . 14 14 14 Energy Gun 12 | . 10 14 13 Ballistic Gun 12 | . 17 13 8 Special Weapon 2 | . . . 4 Naked Turns . | . . . . Heaviest Build 19 | 11 14 14 19 Greatest Support 30 | 20 20 20 30 Greatest Overweight (x) 1 | 1 . . . Average Overweight (x) . | . . . . Largest Inventory Capacity 8 | 8 8 8 8 Average Capacity 7 | 7 8 8 8 Most Carried 8 | 6 8 8 8 Average Carried 6 | 2 7 7 6 Final Capacity 8 | 8 8 8 8 Final Carried 8 | 6 8 7 5 Class Distribution -------------------- 65% | Scavenger-Mutant 34% | Mutant Dominant Class ---------------- Scavenger-Mutant | -10/Materials Scavenger-Mutant | -10/Mines Scavenger-Mutant | -10/Subcaves Resources | -11 -10 -10 -10 ----------- Run | Yrd Mat Min Sub Matter Collected 622 | 292 162 74 94 Remotely . | . . . . Salvage Created 751 | 130 334 163 124 Parts 60 | 8 28 16 8 Haulers Intercepted . | . . . . Recyclers Shooed . | . . . . Parts Field Recycled . | . . . . Retrieved Matter . | . . . . Parts Self-Destructed 5 | . . . 5 Prevented . | . . . . Kills | -11 -10 -10 -10 ------- Run | Yrd Mat Min Sub Combat Hostiles Destroyed 20 | . 9 8 3 Guns 20 | . 9 8 3 Classes Destroyed 8 | 2 4 . 2 Builder 1 | . 1 . . Tunneler 3 | 3 . . . Recycler 1 | 1 . . . Operator 1 | . 1 . . Swarmer 9 | . 3 6 . Grunt 9 | . 6 2 1 Artisan 1 | . . . 1 Subdweller 2 | . . . 2 Best Kill Streak 6 | 3 4 6 1 Combat Bots Only 6 | . 3 6 1 Max Kills in Single Turn 2 | 2 2 1 1 Gunslinging . | . . . . Exploded . | . . . . Melee . | . . . . Uniques/NPCs Destroyed . | . . . . Combat | -11 -10 -10 -10 -------- Run | Yrd Mat Min Sub Hostile Shots Fired 103 | . 34 34 35 Missed 19 | . 8 4 7 Damage Taken 1153 | . 290 310 553 Core 256 | . 80 52 124 Absorbed by Shields . | . . . . Core Remaining (%) 100 | 100 . . . Volleys Fired 93 | 8 26 21 38 Largest 2 | 2 2 2 2 Hottest 100 | 40 85 100 100 Shots Fired 170 | 16 52 39 63 Gun 155 | 16 52 37 50 Cannon 6 | . . . 6 Launcher . | . . . . Special 9 | . . 2 7 Kinetic 103 | 16 38 18 31 Thermal 67 | . 14 21 32 Explosive . | . . . . Electromagnetic . | . . . . Robot Hit Streak 15 | 4 8 8 15 Robot Miss Streak 2 | 1 2 2 2 Penetration Max . | . . . . Secondary Targets . | . . . . Shots Hit Robots 111 | 10 33 23 45 Core Hits 46 | 7 16 13 10 Critical Kills 1 | . . . 1 Critical Parts Destroyed . | . . . . Critical Strikes 5 | . 2 . 3 Burn 3 | . 2 . 1 Destroy 2 | . . . 2 Melee Attacks . | . . . . Impact . | . . . . Slashing . | . . . . Piercing . | . . . . Sneak Attacks . | . . . . Combat Hostiles . | . . . . Follow-up Attacks . | . . . . Damage Inflicted 1461 | 101 409 346 605 Guns 1304 | 101 404 336 463 Cannons 142 | . . . 142 Explosions . | . . . . Melee . | . . . . Ramming 15 | . 5 10 . Kinetic 857 | 101 289 173 294 Thermal 589 | . 115 163 311 Explosive . | . . . . Electromagnetic . | . . . . Impact . | . . . . Slashing . | . . . . Piercing . | . . . . Highest Corruption . | . . . . Average Corruption . | . . . . Corruption Purged . | . . . . Corruption Blocked . | . . . . Overload Shots . | . . . . Overflow Damage . | . . . . Projectiles . | . . . . Explosions . | . . . . Melee . | . . . . Knockbacks 1 | . . . 1 Impact . | . . . . Kinetic 1 | . . . 1 Secondary . | . . . . Self-Inflicted Damage . | . . . . Shots . | . . . . Rammed . | . . . . Targets Rammed 4 | . 2 2 . Kicked 4 | . 2 2 . Crushed . | . . . . Highest Temperature 264 | . 150 264 44 Average Temperature 58 | . 54 84 7 Received Heat Transfer 339 | . 117 96 126 Siege Activations . | . . . . Robots Corrupted . | . . . . Combat Hostiles . | . . . . Parts Fried . | . . . . Impact Corruptions . | . . . . Robots Melted . | . . . . Combat Hostiles . | . . . . Parts Melted 3 | . 2 1 . Heat Transferred 1591 | . 407 370 814 Parts Sabotaged . | . . . . Parts Stolen . | . . . . Parts Stripped . | . . . . Power Chain Reactions . | . . . . Alert | -11 -10 -10 -10 ------- Run | Yrd Mat Min Sub Peak Influence 306 | 20 306 288 . Initial 118 | . 13 118 . Average 174 | 6 177 203 . Maximum Alert Level 1 | . 1 1 . Low Security (%) 58 | 100 56 51 . Level 1 41 | . 43 48 . Level 2 . | . . . . Level 3 . | . . . . Level 4 . | . . . . Level 5 . | . . . . High Security . | . . . . Max Security . | . . . . Squads Dispatched 3 | . 3 . . Investigation 2 | . 2 . . Extermination . | . . . . Reinforcement 1 | . 1 . . Assault . | . . . . Garrison . | . . . . Intercept . | . . . . Searches Triggered . | . . . . Construction Impeded . | . . . . Haulers Reinforced . | . . . . Active Scanning Responses . | . . . . Cargo Convoy Interrupts . | . . . . Stealth | -11 -10 -10 -10 --------- Run | Yrd Mat Min Sub Distress Signals 1 | . 1 . . Communications Jammed . | . . . . Distress Signals . | . . . . Times Spotted 26 | . 12 8 6 Peak Tracking Total 6 | . 4 6 2 Tactical Retreats 1 | . . . 1 Traps | -11 -10 -10 -10 ------- Run | Yrd Mat Min Sub Traps Triggered 3 | . 1 . 2 Indirectly . | . . . . Trap Hack Attempts . | . . . . Triggered . | . . . . Disarmed . | . . . . Reprogrammed . | . . . . Reused 1 | . . . 1 Traps Extracted . | . . . . Installed 1 | . . . 1 Triggered . | . . . . Most Traps Carried 1 | . . . 1 Machines | -11 -10 -10 -10 ---------- Run | Yrd Mat Min Sub Machines Disabled . | . . . . Max in Single Turn . | . . . . Machines Repaired . | . . . . Machines Dismantled . | . . . . Machines Sabotaged . | . . . . Overloaded Fab Kills . | . . . . Hacking | -11 -10 -10 -10 --------- Run | Yrd Mat Min Sub Machines Accessed 6 | . 5 . 1 Terminals 5 | . 5 . . Fabricators . | . . . . Repair Stations . | . . . . Recycling Units . | . . . . Scanalyzers . | . . . . Garrison Access . | . . . . Total Hacks 23 | . 20 . 3 Successful 10 | . 7 . 3 Failed 13 | . 13 . . Catastrophic . | . . . . Database Lockouts . | . . . . Manual 20 | . 20 . . Terminals 20 | . 20 . . Fabricators . | . . . . Repair Stations . | . . . . Recycling Units . | . . . . Scanalyzers . | . . . . Garrison Access . | . . . . Terminal Hacks 5 | . 2 . 3 Record 3 | . . . 3 Robot Analysis 1 | . 1 . . Terminal Index 1 | . 1 . . Fabricator Hacks . | . . . . Repair Station Hacks . | . . . . Recycling Unit Hacks . | . . . . Scanalyzer . | . . . . Garrison Access Hacks . | . . . . Unauthorized Hacks 5 | . 5 . . Terminals 5 | . 5 . . Assimilate 1 | . 1 . . Botnet 3 | . 3 . . Operators 1 | . 1 . . Fabricators . | . . . . Repair Stations . | . . . . Recycling Units . | . . . . Scanalyzers . | . . . . Garrison Access . | . . . . Data Cores Recovered 1 | . 1 . . Used . | . . . . Hacking Detections 5 | . 5 . . Full Trace Events 4 | . 4 . . Feedback Events . | . . . . Feedback Blocked . | . . . . Robot Schematics Acquired . | . . . . Robots Built . | . . . . Authchips . | . . . . Time . | . . . . Total Robot Build Rating . | . . . . Part Schematics Acquired . | . . . . Parts Built . | . . . . Authchips . | . . . . Time . | . . . . Total Part Build Rating . | . . . . Parts Repaired . | . . . . Time . | . . . . Parts Recycled . | . . . . Recycled Matter . | . . . . Retrieved Matter . | . . . . Retrieved Components . | . . . . Parts Scanalyzed . | . . . . Part Schematics Acquired . | . . . . Parts Damaged . | . . . . Bothacking | -11 -10 -10 -10 ------------ Run | Yrd Mat Min Sub Used RIF Installer . | . . . . Robots Hacked . | . . . . Non-combat . | . . . . Combat . | . . . . Robot Hacks Applied . | . . . . Relay Couplers Released . | . . . . Fabnet Peak Effective % . | . . . . Robots Rewired . | . . . . Allies Hacked . | . . . . Hacks Repelled . | . . . . Allies | -11 -10 -10 -10 -------- Run | Yrd Mat Min Sub Total Allies . | . . . . Largest Group . | . . . . Highest-Rated Group . | . . . . Highest-Rated Ally . | . . . . Total Orders . | . . . . Ally Attacks . | . . . . Total Damage . | . . . . Kills . | . . . . Allies Corrupted . | . . . . Allies Melted . | . . . . Intel | -11 -10 -10 -10 ------- Run | Yrd Mat Min Sub Robot Analysis Total 1 | . 1 . . Derelict Logs Recovered . | . . . . Drone Launches . | . . . . Drone Recoveries . | . . . . Exploration | -11 -10 -10 -10 ------------- Run | Yrd Mat Min Sub Turns Passed 1799 | 93 381 511 814 Spaces Moved 1172 | 47 228 357 540 Core 9 | 9 . . . Treads . | . . . . Legs 1163 | 38 228 357 540 Wheels . | . . . . Hover . | . . . . Flight . | . . . . Fastest Speed 50 | 50 120 120 120 Average Speed 121 | 110 120 120 124 Slowest Speed 130 | 120 120 120 130 Overloaded Moves . | . . . . Propulsion Burnouts . | . . . . Robots Hopped . | . . . . Cave-ins Triggered . | . . . . Exploration Rate (%) 33 | 4 43 49 38 Regions Visited 3 Branch Regions 2 Pre-discovered Areas 1 | . . 1 . Known Exits Taken . | . . . . Unknown Exits Taken 3 | 1 1 1 . Scrap Searched 2 | . . . 2 Spaces Dug . | . . . . Terrain Destroyed 2 | . . . 2 Melee . | . . . . Projectile 2 | . . . 2 AOE . | . . . . Terrain Rammed . | . . . . Walls Destroyed . | . . . . Machines Disabled . | . . . . Actions | -11 -10 -10 -10 --------- Run | Yrd Mat Min Sub Total 1365 | 71 285 396 613 Wait 47 | 3 18 10 16 Move 1169 | 46 227 356 540 Hop . | . . . . Pick Up 13 | 8 . 1 4 Fast Attach 9 | 4 3 1 1 Attach 7 | 2 . 1 4 Detach 1 | . . . 1 Swap 11 | . 5 2 4 Drop 10 | . 4 2 4 Fire 93 | 8 26 21 38 Melee . | . . . . Ram . | . . . . Kick 4 | . 2 2 . Crush . | . . . . Escape Stasis . | . . . . Rewire . | . . . . Trap 1 | . . . 1 Miscellaneous . | . . . . Route ------- -11/Scrapyard -10/Materials (discovered 2 exits: [*Mat] / [*Min]) -10/Mines (discovered 3 exits: [*Mat] / [*Exi] / *Sub) -10/Subcaves (discovered 1 exit: [*Mat]) History --------- Turn | Location | Event 14 | -11/Scrapyard | Discovered new exit (range 16) 94 | -11/Scrapyard | Entered Materials 295 | -10/Materials | Discovered new exit (range 13) 362 | -10/Materials | Discovered new exit (range 8) 475 | -10/Materials | Entered Mines 546 | -10/Mines | Build established: Scavenger-Mutant 640 | -10/Mines | Core integrity fell below 50% 674 | -10/Mines | Discovered new exit (range 10) 730 | -10/Mines | Learned location of Storage (-9) 779 | -10/Mines | Discovered new exit (range 17) 866 | -10/Mines | Deemed a non-threat by the Exiles lab entrance 866 | -10/Mines | Discovered new exit (range 5) 986 | -10/Mines | Entered Subcaves 1098 | -10/Subcaves | Discovered new exit (range 5) 1287 | -10/Subcaves | Ambushed by angry Subdweller bent on revenge 1401 | -10/Subcaves | Shifting Twisted Machinery released Spk. Treads 1412 | -10/Subcaves | Core integrity fell below 20% 1450 | -10/Subcaves | Shifting Twisted Machinery released Sub. Power Source 1549 | -10/Subcaves | Visited Clippyterm 1553 | -10/Subcaves | Learned Research machine intel 1584 | -10/Subcaves | A swath of the cavern ceiling suddenly collapsed 1701 | -10/Subcaves | Build established: Mutant 1800 | -10/Subcaves | Destroyed by I3-CGO(R) with Subdweller Machine Gun Last Messages --------------- >>Record! "LRC-V1" It looks like you're REDACTED, I can suggest REDACTED and REDACTED. Also definitely avoid REDACTED. A swath of the cavern ceiling suddenly collapses. 01643_ S-10 Pest springs to life. 01650_ Destroyed Flight Unit. 01652_ S-10 Pest misfires. 01736_ Acquired 40 matter. 01738_ Acquired Piercing Trap. 01760_ Acquired 4 matter. 01771_ Slug penetrates 63-DJL(R). 01771_ Particle Gun destroyed. 01781_ Dropped Piercing Trap. 01781_ Installed Piercing Trap. 01789_ I3-CGO(R) triggered Piercing Trap. 01789_ Spikes shoot up from the floor. 01789_ I3-CGO(R) suffers critical hit (Impale). 01792_ I3-CGO(R) knocked back. 01795_ Slug penetrates I3-CGO(R). 01795_ I3-CGO(R) suffers critical hit (Destroy). Map ----- +----------------------------------------------------+ | ???### #########????? ?????#""" =%! # | | ???## ####?#####???????????### #" ## # | | ???## ###????????????????????#### ######### | | ???## ###????????????????????????##????????# | | ??? ## ###?????????????????????????????????##### | | ???#######??????????????????????????????????###### | | ????######?????????????????????????????????## # | | ??????????????????????????????????????????# | | ?????????????????????????????????????????# | | ????????????????????????????????????????# | | ????????????????????????????????????????### | | ??????????????????????????????????????????### | | ???????????????????????????????????????????### | | ???????????????????????????????????????????### ## | | ???????????????????????????????????????????## ## | | ????????????????????????????????????????#####= # | | ????????????????????????????????????????##### | | ????????????????????????????????????????## != | | ????????????????????????????????????????## | | ???????????????????????????????????????### | | ????????????????????????#####?????????#### | | ??????????????????????#########????###### ## | | ???????????#####??????#### ############# ### | | ??????????##### ?###?## ######## ### | | ??????????### ###### # ## #### ## | | ??????????## %% ###@ #### ## | | ???????? ### ## | | ???????? ###"#R %###### ## ## | | ?????????????????#####;## %####### ###### | | ????????????????????############?## ###### | | ????????????????????###########??## ###### # | | ?????????????????????????????????## ##### ## | | ?????????????????????????????????######?## ## | | ?????????????????????????????????######?### ## | | ????????????????????????????????????????##### ## | | ?????????????????????????????????????????######## | | ???????????????????????????????????????????####### | | ???????????????????????????????????????????????### | | ?????????????????????????????????????????????????# | | ?????????????????????????????????????????????????# | | ?????????????????????????????????????????????????# | | ??????????????????????????????????????????????#""# | | ??????????????????????????????????????????????#### | | ?????????????????????????????????????????"##"#"### | | ?????????????????????????????????????????#####"" # | | ?????????????????????????????????????????##""""#"# | | ?????????????????????????????????????????##""##### | | ?????????????????????????????????????????####"#"## | | ?????????????????????????????????????????##"##""## | | ???????????????????????????????????????????####""# | +----------------------------------------------------+ Best States ------------- Heat Dissipation 25 Coolant Potential 50 Energy Generation 10 Energy Capacity 250 Matter Stores 300 Matter Capacity 300 Sight Range 16 Terrain Scan Range 16 Terrain Scan Density 10 Evasion (%) 55 Item Schematics ----------------- None Robot Schematics ------------------ None Fabricated ------------ Nothing Alien Tech Used ----------------- None Achievements -------------- None Challenges ------------ None Game ------ Seed MakeshiftSuperchargedStorm Manual? 0 Play Time 00:12:10 Cumulative 1121.8 hours Start 2024.07.04 @ 10:13:06 End 2024.07.04 @ 10:38:42 Sessions 1 Manual Loads 0 Difficulty Rogue Special Mode None Game No. 474 Rogue 474 Adventurer 0 Explorer 0 Win Type - Total 14 Types 12/0/1/1/0/0/0/0/0 Lore% 71 Gallery% 84 Achievement% 71 Wizard Run 0 Options --------- Layout 1 ASCII 0 Keyboard 1 Movement Numpad Keybinds 0 Fullscreen 1 Font 24/Proggy Map View 76x35 Zoom Use 0% Tactical HUD 1 Map Filters NONE Filters NONE Steam 1 RUN: 08cf7d36-2219-4251-9435-2a783996f956